[Event "VII Totalizator Sportowy 2022"]
[Site "Bydgoszcz"]
[Date "2022.06.27"]
[Round "3.6"]
[White "Jarmula, Lukasz"]
[Black "Jarocka, Liwia"]
[Result "1-0"]
[ECO "A45"]
[WhiteElo "2459"]
[BlackElo "2006"]
[Annotator "TA"]
[PlyCount "133"]
[EventDate "2022.06.25"]
[EventType "swiss"]
[EventCountry "POL"]
[SourceTitle "playchess.com"]
[Source "ChessBase"]
[SourceQuality "1"]
[TimeControl "40/5400+30:1800+30"]

{[%evp 11,133,0,0,0,0,0,0,0,0,0,-14,0,13,0,2,-2,0,0,0,0,0,0,0,-9,22,0,0,17,35,35,35,31,29,25,28,0,0,-11,0,0,27,28,28,8,39,20,28,22,59,28,62,37,60,44,62,44,227,204,185,124,521,542,542,541,535,533,492,398,390,391,388,385,414,416,379,383,414,376,393,68,1162,1139,1111,1097,1047,775,6510,5650,4001,2461,29966,29967,29966,29966,29975,29976,29963,29964,29964,29962,29979,29980,29980,29981,29981,29982,29982,29983,29983,29984,29982,29985,29985,29986,29984,29985,29987,29988,29988,29989,29989,29990,29990,29991]} 1. d4 {[%emt 0:00:02]} Nf6 {[%emt 0:00:09]} 2. Bf4 {[%emt 0:00:06]} e6 {[%emt 0:00:23]} 3. e3 {[%emt 0:00:14]} d5 {[%emt 0:00:16]} 4. Nf3 {[%emt 0:00:09]} Bd6 {[%emt 0:00:28]} 5. Ne5 {[%emt 0:00:10]} O-O {[%emt 0:01:09]} 6. Nd2 {[%emt 0:00:10]} c5 {[%emt 0:00:38]} 7. c3 {[%emt 0:00:14] D02: 1 d4 d5 2 Nf3 sidelines, including 2...Nf6 3 g3 and 2...Nf6 3 Bf4.} Qc7 {[%emt 0:01:45] seems to push 7...Nc6 aside.} 8. Bd3 {[%emt 0:00:24]} b6 {[%emt 0:06:12]} 9. h4 {[%emt 0:04:02][%cal Bh2h4,Bh4h5,Bh5h6][%mdl 32] The position is equal.} Ba6 {[%emt 0:01:42]} 10. Bxa6 {[%emt 0:01:39]} Nxa6 {[%emt 0:00:06]} 11. h5 {[%emt 0:00:38]} Nd7 {[%emt 0:04:56][%cal Rd7e5]} 12. h6 {[%emt 0:03:53] hxg7 is the strong threat.} g6 {[%emt 0:01:12][%cal Rd7e5] [#]} 13. Ndf3 $146 {[%emt 0:00:40][%mdl 2048] White has counterplay} ({Predecessor:} 13. Nxd7 Qxd7 14. Bxd6 Qxd6 15. Qe2 Nb8 16. Rd1 cxd4 17. exd4 Nc6 18. Nf3 f6 19. O-O {½-½ (34) Demchenko,A (2655)-So,W (2767) Khanty-Mansiysk 2019}) 13... Nxe5 {[%emt 0:04:56]} 14. Bxe5 {[%emt 0:03:57]} f6 {[%emt 0:12:37]} 15. Bxd6 {[%emt 0:00:45]} Qxd6 {[%emt 0:00:06]} 16. Qe2 {[%emt 0:01:22]} Nc7 {[%emt 0:01:14]} 17. O-O {[%emt 0:04:30]} Rae8 {[%emt 0:02:38]} 18. Rfd1 {[%emt 0:04:36]} e5 {[%emt 0:06:22]} 19. dxc5 {[%emt 0:12:08]} bxc5 {[%emt 0:00:56]} 20. e4 {[%emt 0:01:52]} d4 {[%emt 0:04:58]} 21. b4 {[%emt 0:02:04]} Qa6 {[%emt 0:13:10]} 22. Qxa6 {[%emt 0:12:03]} Nxa6 {[%emt 0:00:03]} 23. b5 {[%emt 0:00:13]} (23. bxc5 $5 {[%cal Rc3d4]} dxc3 24. Rac1 $14) 23... Nc7 {[%emt 0:00:09][%cal Ba6c7,Bc7e8,Be8d6][%mdl 32]} 24. c4 {[%emt 0:00:07]} Rc8 {[%emt 0:04:10]} 25. Rd3 {[%emt 0:01:53]} Ne8 {[%emt 0:03:25]} 26. Ra3 {[%emt 0:01:20]} Rf7 {[%emt 0:01:15]} 27. Ra6 {[%emt 0:02:09]} Rd7 {[%emt 0:01:03]} 28. Nd2 {[%emt 0:03:19]} Kf7 {[%emt 0:02:33]} 29. a4 {[%emt 0:02:38]} Nd6 {[%emt 0:03:51]} 30. Ra3 {[%emt 0:00:41]} g5 {[%emt 0:07:26]} 31. g4 {[%emt 0:01:29]} Kg6 {[%emt 0:00:35]} 32. Rh3 {[%emt 0:00:38]} Ne8 {[%emt 0:04:32]} 33. Kf1 {[%emt 0:01:29] White is more active.} d3 $2 {[%emt 0:02:04]} (33... Rcc7 $14) 34. Ke1 $1 $18 {[%emt 0:00:40]} Rcc7 {[%emt 0:00:56]} 35. Nb3 {[%emt 0:04:15] Inhibits Rd4.} Nd6 $2 {[%emt 0:02:16][%mdl 8192]} (35... d2+ $16 36. Nxd2 Rd4) 36. Rxd3 {[%emt 0:01:34]} Nxc4 {[%emt 0:01:32]} 37. Rxd7 {[%emt 0:01:18]} Rxd7 {[%emt 0:00:05]} 38. Nxc5 {[%emt 0:00:09][%mdl 4096] Endgame KRN-KRN} Rf7 {[%emt 0:01:19]} 39. Ne6 {[%emt 0:04:10]} Kxh6 {[%emt 0:01:16]} 40. Nd8 {[%emt 0:00:00]} Rd7 {[%emt 0:00:00]} 41. Nc6 {[%emt 0:02:14]} Nb2 {[%emt 0:05:48]} 42. Rxa7 {[%emt 0:11:00]} Rxa7 {[%emt 0:05:41]} 43. Nxa7 {[%emt 0:00:07]} Nxa4 {[%emt 0:00:04] KN-KN} 44. Kd2 {[%emt 0:01:18] Strongly threatening Nc8.} Kg6 {[%emt 0:00:41]} 45. Kd3 $2 {[%emt 0:00:37]} (45. Nc8 $1 $18) 45... h5 $2 {[%emt 0:01:46][%mdl 8192]} (45... Nb6 $14) 46. gxh5+ {[%emt 0:00:46]} Kxh5 {[%emt 0:00:03]} 47. Nc8 $1 {[%emt 0:00:43]} g4 {[%emt 0:00:46]} 48. Kc4 {[%emt 0:02:09]} f5 {[%emt 0:01:12]} 49. exf5 {[%emt 0:03:18] aiming for Nd6.} Kg5 {[%emt 0:00:12] [#]} 50. Nd6 $1 {[%emt 0:02:40] Threatening mate with Kb4.} ({Less strong is} 50. Kb4 g3 51. fxg3 e4 $18) 50... Kf6 {[%emt 0:05:46]} 51. Kb4 {[%emt 0:02:56] White mates.} Nb6 {[%emt 0:00:34]} 52. Kc5 {[%emt 0:00:56]} Na4+ {[%emt 0:01:18]} 53. Kc6 {[%emt 0:04:46]} Kg5 {[%emt 0:01:45]} 54. Ne4+ {[%emt 0:05:41]} Kxf5 {[%emt 0:00:11]} 55. Nc5 {[%emt 0:00:06]} e4 {[%emt 0:03:32]} 56. Nxa4 {[%emt 0:01:50]} e3 {[%emt 0:00:12]} 57. fxe3 {[%emt 0:00:29] KN-KP} g3 {[%emt 0:00:11]} 58. Nc3 {[%emt 0:01:38]} g2 {[%emt 0:00:12]} 59. Ne2 {[%emt 0:00:16]} Ke4 {[%emt 0:00:06]} 60. b6 {[%emt 0:00:28]} Kxe3 {[%emt 0:00:07]} 61. Ng1 {[%emt 0:00:14]} Kf2 {[%emt 0:00:05]} 62. b7 {[%emt 0:00:04]} Kxg1 {[%emt 0:00:06]} 63. b8=Q {[%emt 0:00:07]} Kf2 {[%emt 0:00:04]} 64. Qf4+ {[%emt 0:00:09]} Ke1 {[%emt 0:00:05]} 65. Qg3+ {[%emt 0:00:09]} Kf1 {[%emt 0:00:03] [#]} 66. Qf3+ $1 {[%emt 0:00:07]} Kg1 {[%emt 0:00:06]} 67. Kd5 {[%emt 0:00:12] Weighted Error Value: White=0.17 (very precise) /Black=0.36} 1-0

[Event "VII Totalizator Sportowy 2022"]
[Site "Bydgoszcz"]
[Date "2022.06.27"]
[Round "3.7"]
[White "Dubnevych, Maksym"]
[Black "Maksimenko, Andrei"]
[Result "0-1"]
[ECO "B90"]
[WhiteElo "2048"]
[BlackElo "2434"]
[Annotator "TA"]
[PlyCount "158"]
[EventDate "2022.06.25"]
[EventType "swiss"]
[EventCountry "POL"]
[SourceTitle "playchess.com"]
[Source "ChessBase"]
[SourceQuality "1"]
[TimeControl "40/5400+30:1800+30"]

{[%evp 12,158,35,-1,10,4,2,-7,0,-12,-17,-9,0,-16,-10,-52,-50,-29,-15,0,0,0,0,0,0,13,11,0,5,0,9,0,0,0,54,17,0,-39,-37,-35,-46,-43,-43,-41,-35,-39,-41,-43,-37,-75,-8,-20,0,-29,-2,-37,-21,-33,0,-16,46,-23,-24,-2,81,0,0,0,138,-41,-37,-53,-53,-80,-74,-81,-76,-87,-74,-66,-51,-43,-32,-116,-116,-116,-105,-96,-110,-116,-116,-116,-116,-116,-116,-116,-68,-191,-191,-191,-191,-191,-191,-202,-202,-243,-202,-202,-116,-202,-202,-202,-116,-116,0,-191,-177,-1168,-1000,-1012,-932,-1636,-1229,-29966,-29967,-29966,-2327,-29967,-903,-29972,-29970,-29972,-29973,-29966,-29974,-29974,-29975,-29974,-29976,-29975,-29976,-29976,-29977,-29977,-29978,-29996,-29997,-29997,-807]} 1. e4 {[%emt 0:00:03]} c5 {[%emt 0:00:10]} 2. Nf3 {[%emt 0:00:06]} d6 {[%emt 0:00:06]} 3. d4 {[%emt 0:00:08]} cxd4 {[%emt 0:00:04]} 4. Nxd4 {[%emt 0:00:03]} Nf6 {[%emt 0:00:07]} 5. Nc3 {[%emt 0:00:03]} a6 {[%emt 0:00:15]} 6. Bd3 {[%emt 0:00:21]} Nbd7 {[%emt 0:00:13]} 7. f4 {[%emt 0:00:55]} g6 {[%emt 0:01:45] B93: Sicilian Najdorf: 6 f4.} 8. Qf3 {[%emt 0:01:20]} Bg7 {[%emt 0:01:10]} 9. Be3 {[%emt 0:02:01]} e5 {[%emt 0:05:56] [#] The position is equal.} 10. Nb3 $146 {[%emt 0:13:12]} ({Predecessor:} 10. Nde2 b5 11. O-O O-O 12. f5 Bb7 13. g4 b4 14. g5 bxc3 15. gxf6 Nxf6 16. Nxc3 {0-1 (40) Leszko,B (2321)-Nagy,G (2495) Budapest 2021}) 10... exf4 {[%emt 0:00:45]} 11. Qxf4 {[%emt 0:00:38]} Ne5 {[%emt 0:01:23]} 12. h3 {[%emt 0:03:27]} b5 {[%emt 0:18:38]} 13. a3 {[%emt 0:11:02]} O-O {[%emt 0:03:33]} 14. O-O {[%emt 0:00:57]} Be6 {[%emt 0:03:18]} 15. Nd4 {[%emt 0:06:24]} Nfd7 {[%emt 0:04:05]} 16. Qg3 {[%emt 0:06:38]} Re8 {[%emt 0:08:55]} 17. Rad1 {[%emt 0:04:34][%cal Od4f5]} Qc7 {[%emt 0:05:30]} 18. Nf5 {[%emt 0:08:18]} Bf8 {[%emt 0:04:40]} (18... gxf5 19. exf5 Kh8 20. fxe6 fxe6 21. Ne4 $16) 19. Bd4 {[%emt 0:04:43]} Nc6 {[%emt 0:08:57]} 20. Bf2 {[%emt 0:02:17]} Nce5 {[%emt 0:01:50]} 21. Bd4 {[%emt 0:01:20]} Nc6 {[%emt 0:00:43]} 22. Bf2 {[%emt 0:00:03]} Nde5 {[%emt 0:10:23]} (22... Nce5 $11) 23. Ne3 {[%emt 0:01:11]} Ne7 {[%emt 0:00:02]} 24. Ned5 {[%emt 0:00:30]} Bxd5 {[%emt 0:01:11]} 25. Nxd5 {[%emt 0:00:07]} Nxd5 {[%emt 0:00:06]} 26. exd5 {[%emt 0:00:02]} Bg7 {[%emt 0:00:56]} 27. c3 {[%emt 0:11:39]} Re7 {[%emt 0:01:47]} 28. Be3 {[%emt 0:07:15]} h6 {[%emt 0:10:03]} 29. Kh1 {[%emt 0:02:11]} Kh7 {[%emt 0:01:35]} 30. Qh4 {[%emt 0:10:07]} Nc4 {[%emt 0:02:39]} (30... Nxd3 $17 31. Rxd3 Rae8) 31. Bc1 {[%emt 0:00:28]} Nb6 {[%emt 0:00:30]} 32. Qf2 {[%emt 0:02:04]} Rae8 {[%emt 0:00:28]} 33. Qf3 {[%emt 0:00:25]} Nd7 {[%emt 0:00:37]} 34. Bf4 {[%emt 0:00:35]} Be5 {[%emt 0:00:30]} 35. Bc1 {[%emt 0:00:28]} Qb7 {[%emt 0:01:15]} (35... Nc5 $11) 36. h4 {[%emt 0:01:36]} ({White should play} 36. Qh5 $1 $14 Kg8 37. Qxh6 (37. Bxg6 fxg6 38. Qxg6+ Bg7 $15)) 36... Bg7 $11 {[%emt 0:00:37]} 37. Bf4 {[%emt 0:00:17]} Be5 {[%emt 0:00:37]} (37... Ne5 $11 {keeps the balance.} 38. Bxe5 dxe5) 38. Bc1 {[%emt 0:00:05] A strong pair of Bishops.} (38. h5 $16 {hxg6+ is the strong threat.} Bxf4 39. Qxf4 (39. hxg6+ fxg6 40. Qxf4 Ne5 $11)) 38... Bg7 {[%emt 0:01:11]} 39. Bf4 {[%emt 0:00:03]} Qb6 {[%emt 0:00:32]} (39... Ne5 $11 40. Bxe5 dxe5) 40. g3 $2 {[%emt 0:00:00]} ({Only move:} 40. h5 $1 $16 {[%cal Rh5g6] aiming for hxg6+.} Nf6 41. Bg3) 40... Kg8 $15 {[%emt 0:00:00]} 41. Kg2 {[%emt 0:06:29]} Qc7 {[%emt 0:08:26]} 42. Bc2 {[%emt 0:07:15]} Ne5 {[%emt 0:02:26]} ({Much worse is} 42... Re2+ $6 43. Rf2 Rxf2+ 44. Qxf2 $15) 43. Bxe5 {[%emt 0:00:51]} Rxe5 {[%emt 0:00:12]} 44. Rf2 {[%emt 0:00:53]} Qa7 {[%emt 0:01:55]} 45. Rdd2 {[%emt 0:01:36]} Qe7 {[%emt 0:06:50]} (45... Re1 {feels hotter.} 46. Rfe2 R8xe2+ 47. Rxe2 Qg1+) 46. Bd3 {[%emt 0:02:31]} Re3 {[%emt 0:01:18]} 47. Rfe2 {[%emt 0:04:07]} ({White should try} 47. Qxe3 $15 Qxe3 48. Rfe2) 47... Rxf3 $17 {[%emt 0:00:59]} 48. Rxe7 {[%emt 0:00:01]} Rxg3+ $1 {[%emt 0:00:08]} ({But not} 48... Rxe7 $6 49. Kxf3 Re1 50. Re2 Rf1+ 51. Rf2 $11 (51. Kg2 Rd1 $11)) 49. Kxg3 {[%emt 0:00:02]} Rxe7 {[%emt 0:00:03]} 50. Re2 {[%emt 0:00:04] Inhibits Re3+.} Rxe2 {[%emt 0:04:20]} 51. Bxe2 {[%emt 0:00:02][%mdl 4096] Endgame KB-KB} h5 {[%emt 0:00:10]} 52. a4 {[%emt 0:02:22]} bxa4 {[%emt 0:00:47]} 53. Bxa6 {[%emt 0:00:02]} Be5+ {[%emt 0:04:49]} (53... Bh6 $1 $17 54. Bb5 Bc1 55. Bxa4 Bxb2) 54. Kh3 {[%emt 0:00:01]} (54. Kf3 $15) 54... Bf4 $1 $19 {[%emt 0:02:57]} 55. Bb5 {[%emt 0:00:07]} Bc1 {[%emt 0:00:05]} 56. Bxa4 {[%emt 0:00:08]} Bxb2 {[%emt 0:00:02]} 57. c4 {[%emt 0:00:07]} Bc3 $1 {[%emt 0:00:47]} 58. Bd7 {[%emt 0:01:08]} Kf8 {[%emt 0:00:13]} 59. Ba4 {[%emt 0:00:44]} Ke7 {[%emt 0:00:06]} (59... f6 $19 60. Bb3 Kg7) 60. Kg3 {[%emt 0:00:29]} (60. Kg2 $17 {was called for.}) 60... Be1+ {[%emt 0:00:06]} 61. Kh3 {[%emt 0:00:04]} Bb4 {[%emt 0:00:18]} ({Better is} 61... f6 $19 {And now ...g5 would win.} 62. Bd1 Kf8) 62. Kg3 {[%emt 0:00:15]} Be1+ {[%emt 0:00:03]} (62... f6 $17 {Threatens to win with ...Be1+.} 63. Kf2 Bc3) 63. Kh3 {[%emt 0:00:03] Black converts the advantage convincingly.} Bf2 {[%emt 0:00:04]} 64. Bb5 $2 {[%emt 0:00:05] [#]} (64. Bc2) 64... f6 $1 {[%emt 0:01:27][%cal Bf7f6,Bf6g5,Bg5g4][%mdl 32]} 65. Ba4 {[%emt 0:03:16] [#]} g5 $1 {[%emt 0:02:05]} 66. hxg5 {[%emt 0:00:44]} fxg5 {[%emt 0:00:01] ( -> ...g4+)} 67. Bd1 {[%emt 0:01:16]} g4+ {[%emt 0:00:08]} 68. Kg2 {[%emt 0:00:02]} Be1 {[%emt 0:01:09]} (68... Be3 $142 69. Kf1 Kf6 70. Ke2 Bd4 71. Kd3 Bc5 72. Ke2 h4 73. Kf1 Kg5 74. Kg2 Bd4 75. Kh2 Be5+ 76. Kh1 h3 77. Be2 g3 78. Bf1 Kh4 79. Kg1 Bf6 80. Kh1 Bd4 81. c5 dxc5 82. d6 c4 83. d7 Bb6 84. d8=R Bxd8 85. Bg2 c3 86. Bxh3 Kxh3 87. Kg1 c2 88. Kf1 c1=Q+ 89. Ke2 Qc4+ 90. Kd1 g2 91. Ke1 g1=Q+ 92. Kd2 Bg5#) 69. Ba4 {[%emt 0:03:50]} Kf6 {[%emt 0:00:31]} (69... Bb4 $142 70. Kg3 Kf6 71. Kf4 Bd2+ 72. Kg3 Kg5 73. Kf2 h4 74. Bc2 h3 75. Bd3 Kf4 76. Bf1 g3+ 77. Kg1 g2 78. Bxg2 hxg2 79. Kf2 Ke4 80. Kxg2 Kd4 81. Kh3 Kxc4 82. Kh4 Kxd5 83. Kg3 Kc4 84. Kg4 d5 85. Kf3 d4 86. Ke2 Bb4 87. Kd1 d3 88. Kc1 Kc3 89. Kd1 d2 90. Ke2 Bc5 91. Kf3 d1=Q+ 92. Ke4 Qh5 93. Kf4 Qg6 94. Ke5 Kd3 95. Kf4 Bd6+ 96. Kf3 Qg3#) 70. Kf1 {[%emt 0:00:27]} Bb4 {[%emt 0:00:15] Black mates.} 71. Kf2 {[%emt 0:00:31]} Bc5+ {[%emt 0:00:16]} 72. Kg3 {[%emt 0:00:14]} Kg5 {[%emt 0:00:05]} 73. Bd1 {[%emt 0:00:13]} h4+ {[%emt 0:00:06][%cal Bh5h4,Bh4h3][%mdl 32]} 74. Kh2 {[%emt 0:00:04]} Bd4 {[%emt 0:00:07]} 75. Be2 {[%emt 0:00:16]} Be5+ {[%emt 0:00:12]} 76. Kg2 {[%emt 0:00:05]} h3+ {[%emt 0:00:04]} 77. Kh1 {[%emt 0:00:10]} g3 {[%emt 0:00:14]} 78. c5 {[%emt 0:00:11]} g2+ {[%emt 0:00:11]} 79. Kg1 {[%emt 0:00:01]} Bd4+ {[%emt 0:00:11] Weighted Error Value: White=0.27 (precise) /Black=0.15 (very precise)} 0-1

[Event "VII Totalizator Sportowy 2022"]
[Site "Bydgoszcz"]
[Date "2022.06.27"]
[Round "3.8"]
[White "Hnydiuk, Aleksander"]
[Black "Kacprzak, Kacper"]
[Result "1/2-1/2"]
[ECO "E19"]
[WhiteElo "2394"]
[BlackElo "2238"]
[Annotator "TA"]
[PlyCount "48"]
[EventDate "2022.06.25"]
[EventType "swiss"]
[EventCountry "POL"]
[SourceTitle "playchess.com"]
[Source "ChessBase"]
[SourceQuality "1"]
[TimeControl "40/5400+30:1800+30"]

{[%evp 17,48,28,26,27,27,22,42,36,37,41,54,35,56,52,60,35,39,30,30,28,33,0,0,0,0,4,0,0,0,-8,-11,-4,-10]} 1. Nf3 {[%emt 0:04:52]} Nf6 {[%emt 0:00:11]} 2. c4 {[%emt 0:00:07]} e6 {[%emt 0:00:05]} 3. g3 {[%emt 0:00:04]} a6 {[%emt 0:00:30]} 4. Bg2 {[%emt 0:00:22]} b5 {[%emt 0:00:07]} 5. b3 {[%emt 0:00:04]} Bb7 {[%emt 0:00:12]} 6. Nc3 {[%emt 0:01:01]} b4 {[%emt 0:00:40]} 7. Na4 {[%emt 0:00:07]} Be7 {[%emt 0:00:22]} 8. O-O {[%emt 0:00:06]} O-O {[%emt 0:00:11]} 9. d4 {[%emt 0:04:16]} d6 {[%emt 0:00:54]} 10. Ne1 {[%emt 0:13:40][%cal Bf3e1,Be1c2,Bc2d4,Bd4f5][%mdl 32] A13: English Opening: 1...e6.} Bxg2 {[%emt 0:00:40] [#]} 11. Kxg2 $146 {[%emt 0:01:20]} ({Predecessor:} 11. Nxg2 Nbd7 12. f3 Nb6 13. Nxb6 cxb6 14. e4 b5 15. a3 bxa3 16. Bxa3 Qc7 17. Ne3 Rfb8 18. Qd3 Qb7 19. Rfd1 Bf8 20. Ra2 a5 21. Rda1 a4 22. Bb2 axb3 {½-½ (22) Schlosser,P (2501)-Speelman,J (2493) Dresden 2018}) 11... Qc8 {[%emt 0:10:10]} 12. f3 {[%emt 0:03:34] White is slightly better.} Nfd7 {[%emt 0:21:47]} 13. e4 {[%emt 0:03:35]} e5 {[%emt 0:10:38]} 14. Nc2 {[%emt 0:06:10]} exd4 {[%emt 0:04:38]} 15. Nxd4 {[%emt 0:00:15]} Bf6 {[%emt 0:02:43]} 16. Bb2 {[%emt 0:09:02][%cal Oc4c5]} Re8 {[%emt 0:04:50]} 17. Qd2 {[%emt 0:02:07]} a5 {[%emt 0:06:49]} 18. Nf5 {[%emt 0:24:12][%cal Oc4c5] aiming for c5!} Qd8 {[%emt 0:01:24]} 19. Rad1 {[%emt 0:05:44][%cal Oc4c5]} Na6 $1 {[%emt 0:02:08] Inhibits c5. The position is equal.} 20. Rfe1 {[%emt 0:00:59]} Bxb2 {[%emt 0:04:14]} 21. Qxb2 {[%emt 0:01:04][%csl Gf5][%cal Rb2g7] [#]} Qf6 {[%emt 0:00:08]} 22. Qxf6 {[%emt 0:06:22]} Nxf6 {[%emt 0:00:36]} 23. c5 {[%emt 0:01:50]} g6 {[%emt 0:00:46]} 24. Ne3 {[%emt 0:02:35]} Nxc5 {[%emt 0:04:26] Weighted Error Value: White=0.08 (flawless) /Black=0.04 (flawless)} 1/2-1/2

[Event "VII Totalizator Sportowy 2022"]
[Site "Bydgoszcz"]
[Date "2022.06.27"]
[Round "3.9"]
[White "Kacprzak, Karol"]
[Black "Sieciechowicz, Marcin"]
[Result "0-1"]
[ECO "B97"]
[WhiteElo "2200"]
[BlackElo "2388"]
[Annotator "TA"]
[PlyCount "78"]
[EventDate "2022.06.25"]
[EventType "swiss"]
[EventCountry "POL"]
[SourceTitle "playchess.com"]
[Source "ChessBase"]
[SourceQuality "1"]
[TimeControl "40/5400+30:1800+30"]

{[%evp 20,78,47,37,29,20,21,4,19,20,24,0,24,-16,-25,-52,-43,-49,-62,-119,-102,-102,-77,-84,-90,-79,-83,-247,-233,-485,-481,-484,-481,-448,-245,-396,-401,-389,-396,-373,-381,-373,-371,-394,-364,-442,-435,-435,-432,-4942,-4790,-5081,-5081,-29964,-29964,-7333,-5052,-29965,-29967,-4770,-4770]} 1. e4 {[%emt 0:00:02]} c5 {[%emt 0:04:48]} 2. Nf3 {[%emt 0:01:21]} d6 {[%emt 0:00:03]} 3. d4 {[%emt 0:00:13]} cxd4 {[%emt 0:00:04]} 4. Nxd4 {[%emt 0:00:05]} Nf6 {[%emt 0:00:02]} 5. Nc3 {[%emt 0:00:11]} a6 {[%emt 0:00:02]} 6. Bg5 {[%emt 0:00:08]} e6 {[%emt 0:00:13]} 7. f4 {[%emt 0:00:10]} Qb6 {[%emt 0:00:22]} 8. Qd2 {[%emt 0:00:14]} Nc6 {[%emt 0:00:05]} 9. Bxf6 {[%emt 0:13:45]} gxf6 {[%emt 0:00:03]} 10. Nb3 {[%emt 0:00:29]} Bd7 {[%emt 0:01:27]} 11. O-O-O {[%emt 0:01:22]} O-O-O {[%emt 0:01:24] B60: Sicilian: Richter-Rauzer: Unusual Black 6th moves and 6...Bd7 without 7 Qd2.} 12. g3 {[%emt 0:03:54]} Kb8 {[%emt 0:03:32]} 13. Bh3 {[%emt 0:05:51]} h5 {[%emt 0:02:01] The position is equal.} 14. Kb1 {[%emt 0:00:14]} h4 {[%emt 0:07:02] [#]} 15. Ne2 $146 {[%emt 0:21:10]} ({Predecessor:} 15. f5 hxg3 16. hxg3 Ne5 17. fxe6 fxe6 18. Ne2 Nf7 19. Nf4 Ng5 20. Bg2 Rxh1 21. Rxh1 {½-½ (42) Lobanov,S (2522)-Demchenko,A (2626) Sochi 2020}) 15... Rc8 {[%emt 0:09:07]} 16. f5 {[%emt 0:07:23]} Ne5 {[%emt 0:03:22]} 17. fxe6 {[%emt 0:01:34]} fxe6 {[%emt 0:01:13]} 18. Nf4 {[%emt 0:02:10]} Nf3 {[%emt 0:06:43]} 19. Qd3 {[%emt 0:01:16]} (19. Qe2 $15 Ng5 20. Bg4) 19... Ng5 $1 $17 {[%emt 0:00:40] Black is more active.} ({Don't take} 19... Ne5 20. Qe2 $14) 20. Bg4 {[%emt 0:10:17]} hxg3 {[%emt 0:09:18]} 21. hxg3 {[%emt 0:10:56]} Rxh1 {[%emt 0:01:48]} 22. Rxh1 {[%emt 0:00:02] [#]} Bc6 $1 {[%emt 0:01:08]} 23. Nd2 {[%emt 0:07:19]} (23. Qd4 $17 {was called for.} Qxd4 24. Nxd4) 23... f5 $1 $19 {[%emt 0:04:35]} 24. Bf3 {[%emt 0:00:10]} (24. Nxe6 {keeps fighting.} Nxe6 25. Bxf5) 24... fxe4 {[%emt 0:02:36]} 25. Bxe4 {[%emt 0:04:38]} Nxe4 {[%emt 0:03:56]} 26. Nxe4 {[%emt 0:00:02]} Bg7 $40 {[%emt 0:02:20][%mdl 128] Black has strong attack.} (26... Qb4 $142 27. c4 Bg7 28. Qxd6+ Qxd6 29. Nxd6 Bxh1 30. Nxc8 Kxc8 31. Nxe6 Be5) 27. b3 $2 {[%emt 0:01:23] [#]} (27. c3 {was forced.}) 27... Qb4 $1 {[%emt 0:01:43]} 28. Qxd6+ {[%emt 0:05:46]} Qxd6 {[%emt 0:00:06]} 29. Nxd6 {[%emt 0:00:02]} Bxh1 {[%emt 0:00:15] A strong pair of Bishops.} 30. Nxc8 {[%emt 0:00:05]} Kxc8 {[%emt 0:00:08]} 31. Nxe6 {[%emt 0:00:03]} Be5 {[%emt 0:00:09]} 32. g4 {[%emt 0:00:13]} b6 {[%emt 0:01:32] aiming for ...Kd7.} 33. Ng5 {[%emt 0:00:51]} Bg2 {[%emt 0:03:11]} 34. Nf7 {[%emt 0:02:09]} (34. Nh7 $142) 34... Bf4 {[%emt 0:00:16]} 35. g5 {[%emt 0:00:15]} Kd7 {[%emt 0:00:53] Hoping for ...Ke6.} 36. Nh6 {[%emt 0:00:32]} Bh3 {[%emt 0:00:24]} 37. Nf7 {[%emt 0:01:04]} Be6 {[%emt 0:00:59]} 38. Nh8 {[%emt 0:00:08]} Bxg5 {[%emt 0:00:22]} 39. Ng6 {[%emt 0:00:04]} Kd6 {[%emt 0:00:08] White did not feel at home in the position after the opening.  Weighted Error Value: White=1.25/Black=0.19 (very precise)} 0-1